bitfinex/quotes_ETHUSD_20260119
["timestamp","ask_amount","ask_price","bid_price","bid_amount"]
[1768821529549,0.94051293,3220.6,3220.0,0.00180032]
[1768821529757,0.0008004,3220.7,3220.0,0.00080032]
[1768821530054,0.0008004,3220.7,3220.2,3.10539646]
[1768821531235,0.94131333,3220.7,3220.0,0.00080032]
[1768821531434,0.94131333,3220.7,3220.0,0.36264739]
[1768821531728,0.94051293,3220.6,3220.0,0.00080032]
[1768821533153,4.03035245,3220.5,3220.0,0.00080032]
[1768821533325,0.92524455,3220.4,3220.0,0.00080032]
[1768821535350,0.92524455,3220.2,3220.0,0.00080032]
[1768821535555,1.43724455,3220.2,3220.0,0.00080032]
[1768821536859,0.92524455,3220.1,3220.0,0.00080032]
[1768821537660,0.92524455,3219.9,3219.7,0.0008004]
[1768821539929,3.10578296,3219.8,3219.7,0.0008004]
[1768821540376,3.10578296,3219.8,3219.6,0.001]
[1768821540377,0.92524455,3219.7,3219.3,0.00080008]
[1768821540590,0.92604463,3219.7,3219.0,0.00080008]
[1768821541169,0.92604463,3219.7,3219.0,0.0016004]
[1768821541538,0.92604463,3219.7,3219.0,0.00080008]
[1768821542267,0.92524455,3219.5,3219.0,0.00080008]
[1768821544381,0.92524455,3219.3,3219.0,0.00080008]
[1768821548084,4.03150988,3219.3,3219.0,0.00080008]
[1768821548259,0.92524455,3219.2,3219.0,0.00080008]
[1768821548577,0.92524455,3219.2,3218.7,0.00080008]
[1768821548771,0.00080008,3219.1,3218.4,0.00080064]
[1768821549065,0.92524455,3218.9,3218.4,0.00080064]
[1768821549238,0.92524455,3218.9,3218.4,0.00260096]
[1768821550050,0.513,3219.0,3218.5,0.00180032]
[1768821550358,0.00080008,3219.4,3218.8,0.00100024]
[1768821550548,3.10696957,3219.4,3218.8,0.00100024]
[1768821551067,0.92524455,3219.3,3218.7,0.0018004]
[1768821551374,0.92524455,3219.1,3218.7,0.00080016]
[1768821551950,0.92524455,3219.1,3218.7,0.0018004]
[1768821552270,0.513,3219.2,3218.7,0.0018004]
[1768821552271,0.513,3219.2,3218.7,0.0028004]
[1768821552471,3.61940072,3219.2,3218.7,0.0028004]
[1768821552660,3.61940072,3219.2,3218.8,0.00100024]
[1768821554776,0.513,3219.1,3218.8,0.00100024]
[1768821555893,3.61946212,3219.1,3218.8,0.00100024]
[1768821556279,3.10646212,3219.1,3218.8,0.00100024]
[1768821556463,3.61946212,3219.1,3218.8,0.00100024]
[1768821558285,0.513,3219.1,3218.8,0.00100024]
[1768821558782,3.10630303,3219.3,3218.8,0.00100024]
[1768821558981,0.513,3219.3,3218.8,0.00100024]
[1768821560088,3.6193172,3219.3,3218.8,0.00100024]
[1768821560785,0.513,3219.3,3218.8,0.00100024]
[1768821561587,3.61926971,3219.3,3218.8,0.00100024]
[1768821562467,0.513,3219.3,3218.8,0.00100024]
[1768821562667,3.61927057,3219.3,3218.8,0.00100024]
[1768821564056,3.10627057,3219.3,3219.1,0.001]
[1768821564259,3.61927057,3219.3,3219.1,0.001]
[1768821564979,4.61821984,3219.3,3219.1,0.001]
[1768821566594,0.16220609,3216.7,3216.0,0.95905467]
[1768821566806,1.51194927,3216.6,3216.0,0.95905467]
[1768821567362,0.99894927,3216.5,3216.0,0.95905467]
[1768821567574,0.99894927,3216.5,3215.9,0.0008012]
[1768821568062,0.513,3216.6,3215.9,0.95985587]
[1768821568063,0.00080016,3216.6,3215.9,0.95985587]
[1768821568283,0.51380016,3216.6,3215.9,0.95985587]
[1768821568788,0.99894927,3216.2,3215.7,0.001]
[1768821570882,0.99894927,3216.0,3215.7,0.001]
[1768821572985,0.0008012,3216.3,3215.7,0.12299343]
[1768821573524,0.99894927,3216.2,3215.7,0.001]
[1768821575294,0.99894927,3216.0,3215.7,0.001]
[1768821575775,0.99975047,3216.3,3215.7,0.001]
[1768821576111,4.10893303,3216.3,3216.0,0.001]
[1768821576312,3.10998376,3216.3,3215.7,0.001]
[1768821576477,0.99894927,3216.2,3215.7,0.001]
[1768821576890,0.99894927,3216.2,3215.7,0.12299343]
[1768821577286,0.0008012,3216.3,3215.7,0.12299343]
[1768821577807,0.0008012,3216.3,3215.7,0.44636025]
[1768821578008,0.0008012,3216.3,3215.7,0.12299343]
[1768821578803,0.0008012,3216.3,3215.8,0.12199343]
[1768821580888,0.98900036,3216.3,3215.8,0.12199343]
[1768821584910,0.98900036,3216.3,3215.7,0.001]
[1768821585209,0.98900036,3216.3,3215.7,0.12299343]
[1768821585909,0.98900036,3216.3,3215.7,3.23272368]
[1768821586112,0.98900036,3216.3,3215.7,3.91826884]
[1768821586313,0.98900036,3216.3,3215.8,0.12199343]
[1768821589697,0.98819916,3216.2,3216.0,0.002]
[1768821590091,0.98819916,3216.2,3215.7,0.001]
[1768821590295,0.98819916,3216.0,3215.7,0.001]
[1768821590641,0.98819916,3215.9,3215.7,0.001]
[1768821595213,3.10946476,3216.0,3215.7,0.001]
[1768821595398,4.04218443,3216.0,3215.7,0.001]
[1768821595600,4.04218299,3216.0,3215.7,0.001]
[1768821595787,0.93271967,3216.0,3215.7,0.001]
[1768821596114,4.04217973,3216.0,3215.7,0.001]
[1768821596413,4.04217973,3216.0,3215.5,0.33444848]
[1768821596712,0.93271967,3215.9,3215.5,0.33444848]
[1768821598888,0.00080192,3216.0,3215.5,0.33444848]
[1768821599091,4.04298931,3216.0,3215.5,0.33444848]
[1768821600287,4.04298931,3216.0,3215.8,0.002]
[1768821600688,0.93352159,3216.0,3215.8,0.002]
[1768821602430,0.93352159,3216.0,3215.5,0.33644848]
[1768821607143,4.04297612,3216.0,3215.5,0.33644848]
[1768821607433,0.93352159,3216.0,3215.5,0.33644848]
[1768821611541,4.04298374,3216.0,3215.5,0.33644848]
[1768821611739,0.93271967,3215.9,3215.5,0.33644848]
[1768821612144,0.93271967,3215.9,3215.8,0.002]
[1768821612330,0.93271967,3215.9,3215.5,0.33644848]
[1768821612733,0.93271967,3215.9,3215.5,0.21445505]
[1768821616241,0.93271967,3215.8,3215.5,0.13920735]
[1768821616551,0.93271967,3215.7,3215.5,0.13920735]
[1768821619434,0.93271967,3215.9,3215.5,0.13920735]
[1768821623560,4.04232965,3215.9,3215.5,0.13920735]
[1768821623767,0.94679546,3215.8,3215.5,0.13920735]
[1768821624863,0.0008012,3216.3,3215.7,0.32885575]
[1768821625029,0.0008012,3216.3,3215.8,0.49731741]
[1768821625234,0.94759666,3216.3,3215.6,0.32965775]
[1768821626963,0.94759666,3216.3,3215.8,0.32885575]
[1768821627164,0.0008012,3216.3,3215.8,0.32885575]
[1768821628465,0.00080016,3216.6,3215.8,0.32885575]
[1768821628634,0.00080016,3216.6,3215.7,6.21948564]
[1768821628635,0.94759562,3216.6,3216.0,0.32885575]
[1768821631571,0.94759562,3216.6,3216.1,0.32885575]
[1768821632139,0.94759562,3216.6,3216.0,0.34391994]
[1768821635647,0.001,3216.3,3216.0,0.34391994]
[1768821635857,0.94679546,3216.4,3216.0,3.45337083]
[1768821636877,0.00080016,3216.6,3216.1,0.32885575]
[1768821637041,0.00080016,3216.6,3216.3,0.32885575]
[1768821639182,0.94759562,3216.6,3216.2,3.48746878]
[1768821639684,0.94759562,3216.6,3216.2,3.81632453]
[1768821641182,0.00080016,3216.6,3216.3,0.32885575]
[1768821641972,0.00080016,3216.6,3216.2,3.48746878]
[1768821642175,0.00080016,3216.6,3216.2,3.81632453]
[1768821643574,0.96325294,3216.7,3216.3,0.38163245]
[1768821643774,0.88745913,3216.7,3216.3,0.38163245]
[1768821643970,0.96325294,3216.9,3216.4,0.40464956]
[1768821644178,0.96325294,3216.9,3216.3,3.49075754]
[1768821645573,0.96325294,3216.9,3216.3,3.8954071]
[1768821646079,0.96325294,3216.9,3216.3,4.4074071]
[1768821646461,0.96325294,3216.9,3216.3,1.29828201]
[1768821647153,0.96325294,3216.9,3216.3,1.29928201]
[1768821647582,0.002,3216.6,3216.3,1.29928201]
[1768821647782,0.96325294,3216.8,3216.4,0.47875377]
[1768821649392,0.96405382,3217.0,3216.4,0.88340333]
[1768821649852,0.96405382,3217.0,3216.4,0.40464956]
[1768821651061,0.96405382,3217.0,3216.3,4.0267927]
[1768821651687,0.96405382,3217.0,3216.4,0.40464956]
[1768821656882,0.96405382,3217.0,3216.3,3.62215436]
[1768821657297,0.96405382,3217.0,3216.3,4.02680392]
[1768821658204,0.96405382,3217.0,3216.4,0.40464956]
[1768821658796,0.96405382,3217.0,3216.3,0.513]
[1768821659182,0.002,3216.7,3216.3,0.513]
[1768821659388,0.91225604,3216.7,3216.3,0.95358874]
[1768821659707,0.91025604,3216.9,3216.3,0.95358874]
[1768821659897,0.48949948,3216.9,3216.3,0.513]
[1768821660208,0.48949948,3216.9,3216.7,0.00820902]
[1768821680912,0.48949948,3216.9,3216.4,0.94981076]
[1768821687930,0.48949948,3216.9,3216.3,0.001]
[1768821687931,0.00280048,3218.3,3216.7,0.90117553]
[1768821688151,0.96698041,3218.3,3217.5,0.90197641]
[1768821688356,0.96698041,3218.3,3217.7,0.90117553]
[1768821692346,0.96698041,3218.3,3217.8,1.41317553]
[1768821694667,0.002,3218.0,3217.8,1.41317553]
[1768821694868,0.96698041,3218.3,3217.8,1.41317553]
[1768821695662,0.00280048,3218.3,3217.9,0.90117553]
[1768821699385,0.92524671,3218.3,3217.9,0.90117553]
[1768821699783,0.00280048,3218.3,3217.9,3.10756968]
[1768821699951,0.00280048,3218.3,3218.1,0.95801431]
[1768821700146,0.92244623,3218.7,3218.1,0.95801431]
[1768821700397,0.00080064,3218.8,3218.3,0.95801431]
[1768821700681,0.92324687,3218.8,3218.3,0.95801431]
[1768821702075,0.92324687,3218.8,3218.2,1.47001431]
[1768821704608,0.92324687,3218.8,3218.3,0.95801431]
[1768821704609,0.00080064,3218.8,3218.3,0.95801431]
[1768821705097,0.00080064,3218.8,3218.4,0.95801431]
[1768821705297,0.92244623,3218.9,3218.4,0.95801431]
[1768821705503,0.92244623,3218.9,3218.4,0.95881503]
[1768821705884,3.8,3219.0,3218.5,4.06505174]
[1768821706210,4.72244623,3219.0,3218.5,4.06505174]
[1768821706401,4.72244623,3219.0,3218.6,1.47001431]
[1768821706594,3.8,3219.0,3218.6,1.47001431]
[1768821707127,0.00080016,3219.1,3218.7,0.95801431]
[1768821707715,0.00080008,3219.4,3218.7,0.95881455]
[1768821708018,0.00080008,3219.4,3218.8,0.95801431]
[1768821708390,0.00080008,3219.4,3218.7,0.00080024]
[1768821708391,0.92324631,3219.4,3218.7,0.00080024]
[1768821708596,0.92324631,3219.4,3218.9,0.512]
[1768821709834,0.92324631,3219.4,3218.9,1.47001431]
[1768821712122,0.00080008,3219.4,3219.0,0.95801431]
[1768821713796,0.96583303,3219.4,3219.0,0.95801431]
[1768821714198,0.96583303,3219.4,3218.9,1.47524725]
[1768821715432,0.00080024,3221.0,3219.4,0.96324725]
[1768821715631,0.96583319,3221.0,3220.4,0.96324725]
[1768821715809,0.96583319,3221.0,3220.3,0.00080048]
[1768821715810,0.96583319,3221.0,3220.5,0.512]
[1768821716014,0.96583319,3221.0,3220.5,1.47524725]
[1768821716428,0.96583319,3221.0,3220.6,0.96324725]
[1768821717339,4.6345926,3221.7,3220.6,0.96324725]
[1768821717539,0.96503295,3221.2,3220.7,0.512]
[1768821717920,0.96503295,3221.2,3220.7,0.35633576]
[1768821718528,0.96503295,3221.2,3220.7,1.31958301]
[1768821718722,0.96583319,3221.3,3220.8,0.96324725]
[1768821718925,0.00080024,3221.3,3220.8,0.96324725]
[1768821719445,0.00080024,3221.3,3220.7,0.35633576]
[1768821719446,0.00080024,3221.3,3220.9,0.96324725]
[1768821720971,0.00080016,3221.8,3221.0,0.96324725]
[1768821721326,0.00080016,3221.8,3221.1,0.96324725]
[1768821721525,0.00080016,3221.8,3221.0,3.10456822]
[1768821721526,0.00080016,3221.8,3221.3,0.96324725]
[1768821722851,0.96583311,3221.8,3221.3,0.96324725]
[1768821723561,1.37309658,3221.8,3221.3,0.96324725]
[1768821724157,0.00313,3221.9,3221.4,0.96404749]
[1768821724158,0.00189682,3221.9,3221.4,0.96404749]
[1768821725226,0.00189682,3221.9,3221.4,3.10503993]
[1768821725429,0.002,3222.3,3221.8,0.96324725]
[1768821725658,0.96503295,3222.9,3222.0,0.96404733]
[1768821725833,0.96583295,3223.1,3222.4,0.96324725]
[1768821726159,0.96583295,3223.1,3222.6,0.96324725]
[1768821726464,0.0008,3223.1,3222.4,0.96324725]
[1768821726764,0.0008,3223.7,3223.1,0.96324725]
[1768821726934,0.0008,3223.7,3223.3,0.96324725]
[1768821727125,0.0008,3224.7,3223.4,0.96324725]
[1768821727126,0.96503295,3224.5,3223.4,0.96324725]
[1768821727324,3.10188225,3224.7,3223.6,0.96404733]
[1768821727325,0.0008,3224.7,3223.6,0.96404733]
[1768821727658,0.0008,3224.7,3224.2,0.96324725]
[1768821727850,0.0008,3224.7,3224.3,0.512]
[1768821728161,0.47603295,3224.6,3224.3,0.512]
[1768821728331,0.96583295,3224.7,3224.3,0.512]
[1768821728738,0.96583295,3224.7,3224.0,0.96404733]
[1768821728971,0.96503295,3224.5,3224.0,0.00080008]
[1768821729134,0.96503295,3224.5,3223.6,0.51280008]
[1768821729462,0.96503295,3224.3,3223.6,0.51280008]
[1768821730126,0.96503295,3224.3,3223.6,0.00080008]
[1768821730325,0.96503295,3224.3,3223.7,0.512]
[1768821730924,1.37175546,3224.2,3223.6,0.00080008]
[1768821731242,0.96503295,3224.2,3223.6,0.00080008]
[1768821731430,0.96503295,3224.2,3223.6,0.51280008]
[1768821731826,0.96503295,3224.2,3223.6,0.00080008]
[1768821733128,0.96583303,3224.4,3223.6,0.96404733]
[1768821733659,0.96503295,3224.3,3223.6,0.00080008]
[1768821733826,0.96503295,3224.1,3223.6,0.00080008]
[1768821734022,1.45403297,3224.1,3223.6,0.00080008]
[1768821734236,0.96503295,3224.0,3223.6,0.00080008]
[1768821734445,0.48900002,3224.1,3223.6,0.00080008]
[1768821734628,0.48900002,3224.1,3223.7,0.96324725]
[1768821735452,0.48900002,3224.1,3223.6,0.00080008]
[1768821735638,0.94455959,3224.1,3223.6,0.00080008]
[1768821735845,0.48900002,3224.1,3223.6,0.00080008]
[1768821736347,0.48900002,3224.1,3223.6,0.96404733]
[1768821736762,0.48900002,3224.1,3223.6,1.47504733]
[1768821736944,0.41416955,3224.1,3223.7,0.96324725]
[1768821737846,3.10220078,3224.4,3223.8,1.47424725]
[1768821738070,3.10220078,3224.4,3223.6,0.00080008]
[1768821738071,0.96503295,3224.2,3223.7,0.511]
[1768821739245,0.96503295,3224.1,3223.6,0.00080008]
[1768821739645,0.96503295,3224.1,3223.6,0.51180008]
[1768821741142,0.96583303,3224.0,3223.3,0.00080008]
[1768821741346,0.96583303,3224.0,3223.4,0.511]
[1768821741547,0.96503295,3223.8,3223.4,0.511]
[1768821741778,0.96583303,3224.0,3223.4,1.47424725]
[1768821742581,0.96583303,3224.0,3223.4,0.511]
[1768821743197,0.95510199,3223.9,3223.3,0.00080008]
[1768821743354,0.95510199,3223.7,3223.3,0.51180008]
[1768821743848,0.95510199,3223.7,3223.3,0.00080008]
[1768821744043,0.95510199,3223.7,3223.3,0.51180008]
[1768821745068,0.95510199,3223.7,3223.3,0.00080008]
[1768821745381,0.95510199,3223.7,3223.3,0.51180008]
[1768821745578,0.95510199,3223.7,3223.1,0.91926783]
[1768821745788,0.95590207,3223.7,3223.2,0.511]
[1768821745969,0.95510199,3223.5,3223.1,0.511]
[1768821746480,0.95510199,3223.5,3223.0,0.51180008]
[1768821746680,0.95510199,3223.5,3223.0,0.00080008]
[1768821747072,0.95510199,3223.3,3223.0,0.00080008]
[1768821747879,0.41416955,3223.4,3223.0,0.92006791]
[1768821748048,0.59167553,3223.4,3223.0,0.92006791]
[1768821749485,1.54677752,3223.4,3223.0,0.00080008]
[1768821750551,0.95510199,3223.3,3223.0,0.00080008]
[1768821750968,0.95510199,3223.3,3222.9,0.001]
[1768821751651,0.95510199,3223.3,3222.9,0.92026783]
[1768821752716,0.17830606,3223.4,3222.9,0.92026783]
[1768821753617,0.41416955,3223.3,3222.9,0.92026783]
[1768821753818,0.41416955,3223.3,3222.9,0.91903465]
[1768821754820,0.41416955,3223.3,3223.2,0.92026783]
[1768821757318,0.00080008,3223.4,3223.2,0.92026783]
[1768821757493,0.31109336,3223.4,3223.2,0.92026783]
[1768821757895,0.00080008,3223.4,3223.2,0.92026783]
[1768821758096,0.00080008,3223.4,3223.2,0.001]
[1768821760431,0.00080008,3223.4,3223.2,0.92728053]
[1768821760922,0.00080008,3223.4,3223.2,0.001]
[1768821763824,0.94993871,3223.4,3223.2,0.001]
[1768821764022,1.35435573,3223.3,3223.2,0.001]
[1768821764223,0.94913863,3223.2,3222.8,0.511]
[1768821764435,0.94913863,3223.2,3222.7,0.51180008]
[1768821764921,0.94913863,3223.2,3222.7,0.00080008]
[1768821765695,4.62389504,3223.0,3222.3,0.92708061]
[1768821765924,0.94913863,3222.8,3222.3,0.00080008]
[1768821766427,0.94913863,3222.6,3221.9,0.92628053]
[1768821766737,0.94913863,3222.6,3222.1,0.511]
[1768821766899,0.94913863,3222.6,3222.0,0.51180008]
[1768821767931,0.94913863,3222.5,3222.0,0.51180008]
[1768821768226,0.94913863,3222.4,3222.0,0.51180008]
[1768821768702,0.94913863,3222.4,3222.0,0.00080008]
[1768821771007,4.05241733,3222.4,3222.0,0.00080008]
[1768821771329,0.94913863,3222.3,3222.0,0.00080008]
[1768821771501,0.94913863,3222.3,3221.7,0.00080016]
[1768821771832,0.94913863,3222.2,3221.7,0.00080016]
[1768821772710,1.26501323,3222.3,3221.7,0.00080016]
[1768821772711,0.00080008,3222.4,3221.7,0.95724501]
[1768821773735,0.96585007,3222.4,3221.7,0.95724501]
[1768821774537,0.00080008,3222.4,3221.7,0.95724501]
[1768821776405,0.96585007,3222.4,3221.7,0.95724501]
[1768821776932,0.96504999,3222.3,3221.7,0.00080016]
[1768821777102,0.96504999,3222.3,3221.7,0.95724501]
[1768821777504,0.00080008,3222.4,3221.7,0.95724501]
[1768821779538,0.00080008,3222.4,3222.0,0.001]
[1768821779736,0.00080008,3222.4,3222.1,0.95644485]
[1768821780039,0.00080008,3222.7,3222.2,0.95644485]
[1768821780238,0.002,3222.4,3222.2,0.95644485]
[1768821781135,0.00280008,3223.1,3222.2,0.95644485]
[1768821781334,0.00280008,3223.4,3222.8,0.95644485]
[1768821781504,0.00280008,3223.4,3223.0,0.95644485]
[1768821783540,0.00280008,3223.4,3222.9,0.511]
[1768821783541,0.96785007,3223.4,3222.9,0.511]
[1768821783836,0.00280008,3223.7,3223.5,0.95644485]
[1768821784043,0.00280008,3223.7,3223.5,0.95521166]
[1768821785643,0.00280008,3223.7,3223.4,0.01783221]
[1768821785858,0.00280008,3223.7,3223.5,0.95644485]
[1768821790561,0.00280008,3223.7,3223.4,0.01783221]
[1768821790948,0.00280008,3223.7,3223.4,0.97427706]
[1768821791261,0.00280008,3223.7,3223.4,0.01783221]
[1768821791767,0.96785007,3223.7,3223.4,0.01783221]
[1768821793633,0.96504999,3223.6,3223.3,0.00080016]
[1768821795296,0.40874213,3223.7,3223.3,0.00080016]
[1768821795776,0.00156689,3223.7,3223.3,0.95724501]
[1768821796386,0.96661688,3223.7,3223.3,0.95724501]
[1768821796678,0.96661688,3223.7,3223.3,0.00080016]
[1768821798861,0.96661688,3223.7,3223.3,0.95724501]
[1768821799868,0.96661688,3223.7,3223.3,0.00080016]
[1768821800036,1.37367173,3223.7,3223.3,0.00080016]
[1768821801199,0.96504999,3223.6,3223.3,0.00080016]
[1768821802967,0.96504999,3223.6,3223.0,0.00080016]
[1768821804393,0.96504999,3223.6,3223.0,0.97908351]
[1768821804695,0.92626218,3223.5,3223.0,0.97908351]
[1768821804993,0.92626218,3223.4,3223.0,0.00080016]
[1768821805693,0.92626218,3223.3,3223.0,0.00080016]
[1768821806200,0.92626218,3223.3,3222.7,0.97908351]
[1768821806601,0.92706234,3223.1,3222.4,0.511]
[1768821806815,0.00080016,3223.4,3222.9,0.97828335]
[1768821806962,0.00080016,3223.4,3223.0,0.97828335]
[1768821807158,0.00236705,3223.7,3222.9,0.40819506]
[1768821807159,0.00236705,3223.7,3223.1,0.97828335]
[1768821807886,0.00236705,3223.7,3223.3,0.97828335]
[1768821811689,0.00236705,3223.7,3223.4,0.97828335]
[1768821813823,0.00236705,3223.7,3223.2,0.97828335]
[1768821814115,0.92862923,3223.7,3223.2,0.97828335]
[1768821814286,0.92862923,3223.7,3223.2,0.97705016]
[1768821814821,0.002,3223.4,3223.2,0.97705016]
[1768821815022,0.92862923,3223.7,3223.2,4.48758743]
[1768821815323,0.92862923,3223.7,3223.3,0.97828335]
[1768821815700,0.00236705,3223.7,3223.3,0.97828335]
[1768821819808,0.96044882,3223.7,3223.3,0.97828335]
[1768821820010,0.96044882,3223.7,3223.0,0.00080024]
[1768821820329,0.95764882,3223.4,3222.7,0.91407787]
[1768821821042,0.95764882,3223.4,3222.7,0.00080024]
[1768821821740,0.95808177,3223.3,3222.7,0.00080024]
[1768821823131,3.10313643,3223.4,3222.7,0.00080024]
[1768821823132,0.95808177,3223.1,3222.7,0.00080024]
[1768821824200,0.95808177,3223.1,3222.3,0.00080016]
[1768821824201,0.95808177,3222.8,3222.3,0.00080016]
[1768821825235,0.512,3222.7,3222.3,0.00080016]
[1768821825440,0.95808177,3222.6,3222.3,0.00080016]
[1768821829242,0.512,3222.7,3222.3,0.91407779]
[1768821829921,1.47008177,3222.7,3222.3,0.00080016]
[1768821830107,1.92738099,3222.7,3222.3,0.00080016]
[1768821830307,0.95808177,3222.6,3222.3,0.00080016]
[1768821831437,0.95888193,3222.4,3221.7,0.91407779]
[1768821832433,0.95808177,3222.3,3221.7,0.91407779]
[1768821833908,0.512,3222.3,3221.7,0.00080016]
[1768821834155,0.97825537,3222.1,3221.4,0.90639148]
[1768821834355,0.97745521,3222.0,3221.4,0.90639148]
[1768821834651,0.00080016,3222.1,3221.4,0.90639148]
[1768821834983,0.51280016,3222.1,3221.4,0.90639148]
[1768821835738,1.49025537,3222.1,3221.4,0.90639148]
[1768821835936,1.98579013,3222.1,3221.4,0.90639148]
[1768821836138,5.08935754,3222.1,3221.4,0.90639148]
[1768821836345,0.97745521,3222.0,3221.4,0.90639148]
[1768821837737,0.00080016,3222.1,3221.4,3.10502336]
[1768821837939,0.00080016,3222.1,3221.5,0.90559124]
[1768821838318,0.00080016,3222.1,3221.6,0.90559124]
[1768821838522,0.00080016,3222.1,3221.8,0.90559124]
[1768821841614,0.00080016,3222.1,3221.7,0.001]
[1768821841992,0.97825537,3222.1,3221.7,0.001]
[1768821842286,0.97745521,3222.0,3221.4,0.00080024]
[1768821842519,0.97745521,3221.6,3221.0,0.90559124]
[1768821843921,0.00080024,3221.8,3221.3,0.90559124]
[1768821844089,0.00080016,3222.1,3221.5,0.90559124]
[1768821844488,0.00080016,3222.1,3221.5,1.41659124]
[1768821844723,0.00080016,3222.1,3221.6,0.90559124]
[1768821845592,0.00080016,3222.1,3221.6,0.90435805]
[1768821845792,0.97825537,3222.1,3221.6,0.90435805]
[1768821846605,0.00080016,3222.1,3221.6,0.90435805]
[1768821852413,0.002,3221.8,3221.6,0.90435805]
[1768821856529,0.00156699,3222.1,3221.7,0.90559124]
[1768821856737,0.00156699,3222.1,3221.7,0.90639148]
[1768821862325,0.002,3222.3,3221.8,0.90559124]
[1768821862521,0.002,3222.6,3222.0,0.90639148]
[1768821864831,0.002,3222.6,3222.1,0.92390438]
[1768821865030,0.002,3222.6,3222.2,0.40293437]
[1768821865234,0.002,3222.6,3222.3,0.92390438]
[1768821866058,0.002,3222.6,3222.1,0.92390438]
[1768821872084,0.002,3222.6,3222.2,0.92390438]
[1768821874080,0.002,3222.6,3222.2,0.92267121]
[1768821874881,0.98239849,3222.6,3222.2,0.92267121]
[1768821875271,0.98239849,3222.6,3222.0,1.43670462]
[1768821875576,0.98239849,3222.6,3222.1,0.92390438]
[1768821876165,0.98239849,3222.6,3222.0,0.92570462]
[1768821876376,0.98239849,3222.6,3222.1,0.92390438]
[1768821878079,0.98239849,3222.6,3222.0,0.00180024]
[1768821878080,0.98039849,3222.5,3222.0,0.00180024]
[1768821878272,0.98039849,3222.5,3222.0,0.92570462]
[1768821881795,0.98039849,3222.5,3222.0,0.00180024]
[1768821882000,0.99137972,3222.2,3221.7,0.51180024]
[1768821882494,0.99137972,3222.2,3221.7,0.00080024]
[1768821885096,0.99137972,3222.1,3221.4,0.00080032]
[1768821885397,0.99137972,3221.9,3221.4,0.00080032]
[1768821886317,0.99137972,3221.9,3221.4,0.9442858]
[1768821889514,0.4094869,3222.0,3221.4,0.9442858]
[1768821890002,0.00080024,3222.1,3221.6,0.94348548]
[1768821890201,0.00080024,3222.4,3221.8,0.94348548]
[1768821892079,0.00080024,3222.4,3222.0,0.94348548]
[1768821892892,2.67,3222.5,3222.0,0.92977458]
[1768821894091,2.67,3222.5,3222.1,0.92897426]
[1768821894297,0.002,3222.6,3222.5,0.92897426]
[1768821894482,0.512,3223.0,3222.5,0.92897426]
[1768821895492,1.42039881,3223.0,3222.5,0.92897426]
[1768821896487,0.90839881,3222.9,3222.5,0.92897426]
[1768821896700,0.00080024,3223.1,3222.6,0.92897426]
[1768821896912,0.00080024,3223.1,3222.7,1.33218976]
[1768821897217,0.90919905,3223.1,3222.7,1.33218976]
[1768821897418,0.00280024,3223.4,3222.8,0.92897426]
[1768821898001,0.91119905,3223.4,3222.8,0.92897426]
[1768821898399,0.91119905,3223.4,3222.9,0.92897426]
[1768821899819,0.002,3223.0,3222.9,0.92897426]
[1768821900004,0.002,3223.0,3222.7,0.91501582]
[1768821900005,0.91119905,3223.4,3222.8,0.92897426]
[1768821900925,0.91119905,3223.4,3222.9,0.92897426]
[1768821901719,0.91119905,3223.4,3222.8,3.1028508]
[1768821901925,0.91119905,3223.4,3222.3,0.00080024]
[1768821901926,0.90839881,3223.0,3222.4,0.92897426]
[1768821903925,0.90839881,3223.0,3222.4,0.92774108]
[1768821905510,0.90839881,3223.0,3222.3,0.00080024]
[1768821905822,0.90839881,3223.0,3222.3,0.9297745]
[1768821906428,0.90839881,3223.0,3222.3,1.38429313]
[1768821907230,0.90839881,3222.9,3222.3,0.9297745]
[1768821907539,0.90839881,3222.6,3222.1,0.92997426]
[1768821907710,0.89067826,3222.6,3222.1,0.92997426]
[1768821908310,0.89067826,3222.6,3222.1,4.0335354]
[1768821908634,0.89067826,3222.6,3222.2,0.92897426]
[1768821909042,0.00080024,3222.7,3222.2,0.92897426]
[1768821909740,0.00080024,3222.7,3222.3,0.92897426]
[1768821909926,0.00080032,3223.1,3222.3,0.92897426]
[1768821910164,0.00080032,3223.1,3222.3,0.92977458]
[1768821911738,0.00080032,3223.1,3222.7,0.92897426]
[1768821912063,0.002,3222.8,3222.7,0.92897426]
[1768821913657,0.00280032,3223.1,3222.7,0.92897426]
[1768821913834,0.00280032,3223.1,3222.9,0.92897426]
[1768821914240,0.00280032,3223.1,3222.7,4.03191967]
[1768821914460,0.00280032,3223.1,3222.7,4.79662134]
[1768821914656,0.00280032,3223.1,3222.8,0.92897426]
[1768821915162,0.00280032,3223.1,3222.7,0.76470167]
[1768821915664,0.91119913,3223.1,3222.7,1.69367593]
[1768821916422,0.00280032,3223.1,3222.7,4.79660691]
[1768821916536,0.00280032,3223.1,3222.9,0.92897426]
[1768821920671,0.00280032,3223.1,3222.8,1.40873495]
[1768821920968,0.00280032,3223.1,3222.8,0.92897426]
[1768821924458,0.95472326,3223.1,3222.6,0.95329501]
[1768821924657,0.002,3222.8,3222.6,0.95329501]
[1768821926972,0.002,3222.8,3222.6,0.001]
[1768821929312,0.002,3222.8,3222.6,0.95329501]
[1768821929684,0.002,3222.8,3222.6,1.41004041]
[1768821930517,0.95392294,3222.8,3222.6,0.001]
[1768821931100,0.002,3222.8,3222.6,0.95329501]
[1768821933486,0.002,3222.8,3222.6,0.001]
[1768821933821,0.002,3222.8,3222.4,0.95206184]
[1768821936319,0.95392294,3222.8,3222.3,0.95309533]
[1768821939327,0.95392294,3222.8,3222.3,0.00080032]
[1768821940291,0.95392294,3222.8,3222.3,0.97315379]
[1768821941337,4.05681873,3222.8,3222.3,0.97315379]
[1768821941766,0.002,3222.8,3222.3,0.97315379]
[1768821947620,0.002,3222.5,3222.3,0.97315379]
[1768821948160,0.002,3222.5,3222.3,1.432015]
[1768821948463,0.002,3222.5,3222.3,0.97315379]
[1768821949927,0.002,3222.5,3222.3,0.00080032]
[1768821951454,0.002,3222.5,3222.1,0.97335347]
[1768821951455,0.00076683,3222.5,3222.1,0.97335347]
[1768821952658,0.94743506,3222.5,3222.1,0.97335347]
[1768821953173,0.94743506,3222.5,3222.1,0.001]
[1768821953970,0.95533364,3222.4,3222.1,0.001]
[1768821957491,0.00076683,3222.5,3222.1,0.001]
[1768821957678,0.95610047,3222.5,3222.1,0.001]
[1768821959151,0.95610047,3222.5,3222.4,0.001]
[1768821959356,0.95533364,3222.4,3221.7,0.00080032]
[1768821959556,0.95613396,3222.4,3221.7,1.44176338]
[1768821959946,0.95613396,3222.4,3221.7,0.93076338]
[1768821960147,0.95613396,3222.4,3221.8,0.92996306]
[1768821960346,0.95533364,3222.3,3221.7,0.00080032]
[1768821961284,4.05880331,3222.2,3221.7,0.00080032]